bitfinex-derivatives/quotes_ETHF0:USTF0_20250107
["timestamp","ask_amount","ask_price","bid_price","bid_amount"]
[1736258054424,0.27506,3635.8,3635.7,0.27505]
[1736258054625,0.27506,3635.8,3635.7,41.07505]
[1736258056419,1.27294039,3635.8,3635.7,41.07505]
[1736258056826,1.27294039,3635.8,3635.7,41.49615]
[1736258057227,0.99789039,3635.8,3635.7,41.49615]
[1736258057526,1.27294039,3635.8,3635.7,41.49615]
[1736258058726,0.99789039,3635.8,3635.7,41.49615]
[1736258059122,1.27294039,3635.8,3635.7,41.49615]
[1736258059942,1.27294039,3635.8,3635.7,40.8]
[1736258060123,1.27294039,3635.8,3635.7,41.07506]
[1736258061131,1.27294039,3635.8,3635.7,40.8]
[1736258061935,0.27507,3635.6,3635.3,3.2078]
[1736258062133,1.42559039,3635.5,3635.4,0.27508]
[1736258062540,1.42559039,3635.5,3635.4,41.07508]
[1736258063535,1.42559039,3635.5,3635.4,40.8]
[1736258063730,1.70066039,3635.5,3635.4,40.8]
[1736258072656,1.70066039,3635.5,3635.4,41.07508]
[1736258073746,1.70066039,3635.5,3635.4,40.8]
[1736258074744,2.42348078,3635.5,3635.0,3.6482]
[1736258074947,0.99789039,3635.1,3635.0,3.6482]
[1736258075249,1.27299039,3635.1,3635.0,44.72331]
[1736258075449,1.27299039,3635.1,3635.0,44.4482]
[1736258075954,1.27299039,3635.1,3635.0,44.72331]
[1736258076144,1.27299039,3635.1,3635.0,44.4482]
[1736258076345,1.71019039,3635.1,3635.0,44.4482]
[1736258076644,1.71019039,3635.1,3635.0,44.72331]
[1736258077047,1.71019039,3635.1,3635.0,40.8]
[1736258077646,1.43509039,3635.1,3634.6,0.4465]
[1736258077852,1.27302039,3634.7,3634.6,0.4465]
[1736258078046,1.27302039,3634.7,3634.6,0.72164]
[1736258078246,1.27302039,3634.7,3634.6,41.2465]
[1736258078955,1.27302039,3634.7,3634.6,41.07514]
[1736258079257,3.86869437,3634.7,3634.6,41.07514]
[1736258079658,3.86869437,3634.7,3634.6,40.8]
[1736258079853,3.86869437,3634.7,3634.6,41.07514]
[1736258080161,1.71022039,3634.7,3634.6,40.8]
[1736258090166,1.71022039,3634.7,3634.6,41.07514]
[1736258090666,0.4198,3634.8,3634.6,40.8]
[1736258090864,3.15636437,3634.9,3634.6,40.8]
[1736258091070,2.15847398,3634.9,3634.8,0.27513]
[1736258092171,0.77427398,3634.9,3634.8,0.27513]
[1736258092867,0.99789039,3635.4,3635.3,0.27509]
[1736258093369,1.27297039,3635.4,3635.2,0.27509]
[1736258093559,1.27297039,3635.4,3635.3,40.8]
[1736258093765,1.27297039,3635.4,3635.3,41.07509]
[1736258093974,0.99789039,3635.4,3635.3,41.07509]
[1736258098469,0.99789039,3635.4,3635.3,40.8]
[1736258098773,0.99789039,3635.4,3635.3,41.07509]
[1736258099075,1.27297039,3635.4,3635.3,41.07509]
[1736258099675,4.50718729,3635.4,3635.3,41.07509]
[1736258100568,4.50718729,3635.4,3635.3,40.8]
[1736258101674,4.50718729,3635.4,3634.7,1.43989039]
[1736258101675,0.27512,3635.0,3634.9,0.27512]
[1736258101875,0.27512,3634.9,3634.8,0.27512]
[1736258102182,0.27515,3634.5,3634.4,9.64211648]
[1736258102367,1.27304039,3634.5,3634.4,9.91727648]
[1736258102669,1.27304039,3634.5,3634.4,50.71727648]
[1736258103279,0.27515,3634.5,3634.4,50.71727648]
[1736258104087,0.27515,3634.5,3634.4,44.28296]
[1736258104579,0.27515,3634.5,3634.4,44.0078]
[1736258106282,0.27515,3634.5,3634.4,44.28296]
[1736258106472,1.13085,3634.6,3634.5,0.27515]
[1736258109783,0.27515,3634.5,3634.4,42.07515]
[1736258111278,0.27515,3634.5,3634.4,41.8]
[1736258117694,0.68798867,3634.5,3634.4,41.8]
[1736258118989,0.68798867,3634.5,3634.4,1.0]
[1736258119187,0.68798867,3634.5,3634.4,0.308]
[1736258119380,0.68798867,3634.5,3633.6,3.2078]
[1736258119381,0.41283867,3634.5,3633.6,3.2078]
[1736258119589,0.41283867,3634.5,3633.8,40.8]
[1736258119590,0.2752,3633.9,3633.8,40.8]
[1736258121089,0.27524,3633.3,3633.2,6.70955648]
[1736258121487,0.27524,3633.3,3633.2,47.50955648]
[1736258121884,0.27524,3633.3,3633.2,40.8]
[1736258124295,2.49027288,3633.3,3633.2,40.8]
[1736258126098,2.49027288,3633.3,3633.2,41.07525]
[1736258126297,2.49027288,3633.3,3633.2,40.8]
[1736258127095,2.21503288,3633.3,3633.2,41.07525]
[1736258127299,0.27524,3633.3,3633.2,41.07525]
[1736258127595,0.27524,3633.3,3633.2,42.07525]
[1736258127801,0.69844,3633.4,3633.3,0.27524]
[1736258128194,0.69844,3633.4,3633.3,0.71304]
[1736258129106,0.4511,3633.5,3633.4,0.27523]
[1736258129107,0.27523,3633.5,3633.4,0.27523]
[1736258130697,0.27523,3633.4,3633.3,0.71304]
[1736258130998,3.6267,3633.6,3633.5,0.27523]
[1736258131794,3.23683272,3633.9,3633.4,0.4533]
[1736258131996,0.2752,3633.8,3633.7,0.2752]
[1736258133501,2.21503288,3634.0,3633.4,0.4533]
[1736258133693,0.27522,3633.7,3633.6,0.27521]
[1736258136605,2.49025288,3633.7,3633.6,0.27521]
[1736258137202,0.27523,3633.6,3633.5,0.27522]
[1736258137900,2.21503288,3633.7,3633.3,0.4378]
[1736258138100,0.27523,3633.5,3633.4,0.27523]
[1736258138597,0.27523,3633.5,3633.3,0.4378]
[1736258138598,0.27523,3633.4,3633.3,0.71304]
[1736258138798,0.71103,3633.4,3633.3,0.71304]
[1736258138998,0.4358,3633.4,3633.3,0.71304]
[1736258139194,0.71103,3633.4,3633.3,0.71304]
[1736258139597,0.71103,3633.4,3633.3,0.4378]
[1736258142700,0.4358,3633.4,3633.3,0.71304]
[1736258142903,0.27523,3633.5,3633.3,0.71304]
[1736258143598,0.27521,3633.7,3633.3,0.4378]
[1736258143905,3.2078,3633.8,3633.3,0.4378]
[1736258144104,0.8356,3633.9,3633.6,0.27522]
[1736258144105,0.4192,3633.9,3633.6,0.27522]
[1736258144303,0.27521,3633.7,3633.3,0.4378]
[1736258144503,0.27521,3633.7,3633.5,0.27522]
[1736258144706,0.27522,3633.6,3633.5,0.27522]
[1736258145803,0.4192,3633.9,3633.3,0.4378]
[1736258146005,0.27522,3633.6,3633.5,0.27522]
[1736258148603,0.27522,3633.7,3633.6,0.27521]
[1736258149207,0.27523,3633.6,3633.5,0.27522]
[1736258149702,0.4192,3633.9,3633.3,0.4378]
[1736258149905,0.27523,3633.5,3633.4,0.27523]
[1736258150101,0.27523,3633.5,3633.3,0.4378]
[1736258150102,0.27522,3633.6,3633.5,0.27522]
[1736258150999,0.27523,3633.5,3633.4,0.27523]
[1736258151906,0.69072,3633.6,3633.5,0.27523]
[1736258153410,1.69080927,3633.6,3633.5,0.27523]
[1736258154016,0.69072,3633.6,3633.5,0.27523]
[1736258154209,1.69080927,3633.6,3633.5,0.27523]
[1736258154811,1.41558927,3633.6,3633.5,0.27523]
[1736258155205,1.69080927,3633.6,3633.5,0.27523]
[1736258156009,1.41558927,3633.6,3633.5,0.27523]
[1736258156313,1.27530927,3633.6,3633.5,0.27523]
[1736258157707,1.00008927,3633.6,3633.5,0.27523]
[1736258159210,1.27530927,3633.6,3633.5,0.27523]
[1736258161016,1.00008927,3633.6,3633.5,0.27523]
[1736258161214,1.27530927,3633.6,3633.5,0.27523]
[1736258162225,4.9195427,3633.6,3633.5,0.27523]
[1736258163811,0.27523,3633.5,3633.4,0.27523]
[1736258164004,1.71491927,3633.5,3633.4,0.27523]
[1736258164201,1.43968927,3633.5,3633.4,0.27523]
[1736258165218,5.0839227,3633.5,3633.4,0.27523]
[1736258168919,5.3591527,3633.5,3633.4,0.27523]
[1736258169519,5.3591527,3633.5,3633.4,41.07523]
[1736258169520,5.0839227,3633.5,3633.4,41.07523]
[1736258170112,5.0839227,3633.5,3633.4,40.8]
[1736258170311,5.3591527,3633.5,3633.4,41.07523]
[1736258170712,5.0839227,3633.5,3633.4,41.07523]
[1736258170922,1.85259854,3633.5,3633.4,41.07523]
[1736258172223,1.43968927,3633.5,3633.4,41.07523]
[1736258172721,1.71491927,3633.5,3633.4,41.07523]
[1736258173019,1.43968927,3633.5,3633.4,41.07523]
[1736258173424,2.12782854,3633.5,3633.4,41.07523]
[1736258174022,1.85259854,3633.5,3633.4,41.07523]
[1736258174514,2.12782854,3633.5,3633.4,41.07523]
[1736258175024,6.43626076,3633.5,3633.4,45.38376532]
[1736258176423,6.16103076,3633.5,3633.4,45.38376532]
[1736258177127,5.16094149,3633.5,3633.4,45.38376532]
[1736258178131,6.43626076,3633.5,3633.4,45.10853532]
[1736258178529,6.43626076,3633.5,3633.4,4.30853532]
[1736258178724,7.43635003,3633.5,3633.4,4.30853532]
[1736258178926,7.43635003,3633.5,3633.2,3.92473532]
[1736258178927,5.67560207,3633.5,3633.2,3.92473532]
[1736258179231,0.27523,3633.4,3633.3,40.8]
[1736258180123,1.27531927,3633.4,3633.3,40.8]
[1736258180324,10.92327706,3633.4,3633.3,40.8]
[1736258180630,11.92336633,3633.4,3633.3,40.8]
[1736258180830,10.92327706,3633.4,3633.3,40.8]
[1736258181023,11.64813633,3633.4,3633.2,1.0]
[1736258181223,0.27524,3633.3,3633.2,1.0]
[1736258181633,0.27524,3633.3,3633.2,41.8]
[1736258182125,0.70094,3633.3,3633.2,41.8]
[1736258182421,1.15094,3633.3,3633.2,42.07525]
[1736258182628,2.15102927,3633.3,3633.2,42.07525]
[1736258183131,1.56384927,3633.3,3633.2,41.8]
[1736258183430,2.56393854,3633.3,3633.2,42.07525]
[1736258183633,2.28869854,3633.3,3633.2,42.07525]
[1736258184924,1.28860927,3633.3,3633.2,42.07525]
[1736258185121,2.28869854,3633.3,3633.2,42.07525]
[1736258185634,6.61556897,3633.3,3633.2,42.07525]
[1736258187335,2.28869854,3633.3,3633.2,42.07525]
[1736258188533,5.53345949,3633.3,3633.2,42.07525]
[1736258192838,5.80869949,3633.3,3633.2,42.07525]
[1736258193031,2.56393854,3633.3,3633.2,42.07525]
[1736258193536,2.56393854,3633.3,3633.2,41.8]
[1736258194133,2.15102927,3633.3,3633.2,41.8]
[1736258195341,6.89080897,3633.3,3633.2,41.8]
[1736258198243,6.41531021,3633.3,3633.2,41.8]
[1736258200441,6.41531021,3633.3,3633.2,42.07525]
[1736258201951,6.41531021,3633.3,3633.2,43.07533927]
[1736258201952,4.26428094,3633.3,3633.2,43.07533927]
[1736258202341,0.41290927,3633.3,3633.2,43.07533927]
[1736258202539,4.7389315,3633.3,3633.2,43.07533927]
[1736258203448,4.7389315,3633.3,3633.2,43.51363927]
[1736258203744,0.41290927,3633.3,3633.2,47.90494518]
[1736258203950,3.24512354,3633.7,3633.6,0.27522]
[1736258204546,3.24512354,3633.7,3633.6,1.15022]
[1736258205149,4.7389315,3633.9,3633.8,0.2752]
[1736258205150,3.24512354,3633.9,3633.8,0.2752]
[1736258205346,3.24512354,3633.9,3633.8,1.27528927]
[1736258205847,3.24512354,3633.9,3633.8,42.07528927]
[1736258207946,4.32602223,3634.1,3634.0,0.27519]
[1736258207947,3.65803281,3634.1,3634.0,0.27519]
[1736258208545,3.65803281,3634.1,3634.0,41.07519]
[1736258209647,3.24512354,3634.1,3634.0,41.07519]
[1736258209849,3.24512354,3634.1,3634.0,42.07527927]
[1736258211050,3.65803281,3634.2,3634.1,0.27518]
[1736258211252,3.93320281,3634.2,3634.1,0.27518]
[1736258212145,3.65803281,3634.2,3634.1,0.27518]
[1736258212344,3.93320281,3634.2,3634.1,0.27518]
[1736258212543,3.65803281,3634.2,3634.1,0.27518]
[1736258212748,3.93320281,3634.2,3634.1,0.27518]
[1736258213151,3.65803281,3634.2,3634.1,0.27518]
[1736258214247,2.16073855,3634.2,3634.1,0.27518]
[1736258217150,2.16073855,3634.3,3634.2,0.27517]
[1736258217551,2.43589855,3634.3,3634.2,0.27517]
[1736258219354,0.27518,3634.1,3634.0,41.07518]
[1736258219550,1.27526927,3634.1,3634.0,41.07518]
[1736258221052,1.00008927,3634.1,3634.0,41.07518]
[1736258221254,1.27526927,3634.1,3634.0,41.07518]
[1736258221455,2.18766927,3634.1,3634.0,41.07518]
[1736258222256,2.18766927,3634.1,3634.0,40.8]
[1736258223548,2.60056368,3634.1,3634.0,40.8]
[1736258224252,0.27523,3633.5,3633.4,0.27523]
[1736258224453,0.27523,3633.4,3633.3,3.48304]
[1736258224655,0.27524,3633.3,3633.2,1.27524]
[1736258225355,1.27532927,3633.3,3633.2,41.8]
[1736258225558,1.27532927,3633.3,3633.2,42.07525]
[1736258227051,1.00008927,3633.3,3633.2,42.07525]
[1736258227454,1.27532927,3633.3,3633.2,41.8]
[1736258228458,1.00008927,3633.3,3633.2,41.8]
[1736258228656,3.78364228,3633.4,3633.3,0.27524]
[1736258228960,4.13690342,3633.4,3633.3,0.27524]
[1736258229947,0.8975,3633.4,3633.3,0.27524]
[1736258230656,1.17273,3633.4,3633.3,0.27524]
[1736258230956,1.17273,3633.4,3633.3,41.07524]
[1736258230957,0.8975,3633.4,3633.3,41.07524]
[1736258232653,2.15994857,3633.5,3633.4,0.27523]
[1736258232853,2.15994857,3633.5,3633.4,1.71621927]
[1736258233157,2.15994857,3633.5,3633.4,2.14461927]
[1736258234456,0.27521,3633.7,3633.6,0.27521]
[1736258234657,0.70521,3633.8,3633.7,0.27521]
[1736258235049,0.43,3633.8,3633.7,0.27521]
[1736258236764,2.58956657,3633.8,3633.7,0.27521]
[1736258237655,2.15956657,3633.8,3633.7,0.27521]
[1736258237854,2.15956657,3633.8,3633.7,3.48301]
[1736258238055,2.58486657,3633.9,3633.7,3.2078]
[1736258238255,2.58486657,3633.9,3633.8,1.27528927]
[1736258239063,2.15956657,3633.9,3633.8,1.27528927]
[1736258239364,2.15956657,3633.9,3633.8,42.07528927]
[1736258239565,2.15956657,3634.0,3633.9,0.2752]
[1736258240062,2.15956657,3634.0,3633.9,0.7328]
[1736258240262,2.15956657,3634.0,3633.9,41.5328]
[1736258241062,1.00008927,3634.2,3634.1,0.27518]
[1736258241262,2.88373657,3634.3,3634.2,0.27517]
[1736258241659,2.88373657,3634.3,3634.2,41.07517]
[1736258241862,2.60856657,3634.3,3634.2,41.07517]
[1736258243864,2.88372657,3634.3,3634.2,41.07517]
[1736258244162,2.60856657,3634.3,3634.2,41.07517]
[1736258244956,0.449,3634.3,3634.2,41.07517]
[1736258246657,0.72416,3634.3,3634.2,41.07517]
[1736258246854,0.449,3634.3,3634.2,41.07517]
[1736258247267,0.449,3634.3,3634.2,42.07525927]
[1736258248265,0.72416,3634.3,3634.2,42.07525927]
[1736258248667,0.449,3634.3,3634.2,42.07525927]
[1736258248867,3.68840342,3634.3,3634.2,42.07525927]
[1736258257372,0.449,3634.3,3634.2,42.07525927]
[1736258260169,2.60951257,3634.3,3634.2,42.07525927]
[1736258269784,2.16051257,3634.3,3634.2,42.07525927]
[1736258270090,0.4439,3634.4,3634.2,41.80008927]
[1736258270091,2.60441257,3634.4,3634.2,41.80008927]
[1736258270390,2.60441257,3634.4,3634.3,0.27516]
[1736258270689,2.60441257,3634.4,3634.3,0.73636]
[1736258274092,0.4439,3634.4,3634.3,0.73636]
[1736258274297,3.23940342,3634.5,3634.4,0.27516]
[1736258274592,3.23940342,3634.5,3634.4,1.27524927]
[1736258276088,2.59134731,3634.7,3634.4,1.27524927]
[1736258276286,2.59134731,3634.7,3634.6,1.27522927]
[1736258277485,0.4302,3634.7,3634.6,1.27522927]
[1736258277890,3.23940342,3634.8,3634.6,1.00008927]
[1736258278194,3.23940342,3634.8,3634.7,0.27513]
[1736258278396,3.23940342,3634.8,3634.7,0.70653]
[1736258278596,3.23940342,3634.8,3634.7,41.50653]
[1736258278996,2.16188969,3634.9,3634.7,42.41566055]
[1736258279297,2.16188969,3634.9,3634.8,1.27521927]
[1736258279897,2.16188969,3634.9,3634.8,42.07521927]
[1736258280397,0.845,3635.1,3634.8,46.185257]
[1736258280700,2.16188969,3635.2,3635.0,4.20788927]
[1736258280999,2.16188969,3635.2,3635.1,0.7126]
[1736258281206,2.16188969,3635.2,3635.1,1.1359]
[1736258281694,2.16188969,3635.2,3635.1,41.9359]
[1736258282090,2.16188969,3635.4,3635.3,0.27509]
[1736258282293,2.16188969,3635.4,3635.3,1.27517927]
[1736258282702,2.16188969,3635.4,3635.3,42.07517927]
[1736258283695,3.45538969,3635.5,3635.3,41.80008927]
[1736258283898,3.45538969,3635.5,3635.4,0.27508]
[1736258285299,1.2935,3635.5,3635.4,0.27508]
[1736258286401,1.2935,3635.5,3635.4,1.27516927]
[1736258300706,1.56857,3635.5,3635.4,1.27516927]
[1736258302805,1.2935,3635.5,3635.4,1.27516927]
[1736258306811,0.8768,3635.5,3635.4,1.27516927]
[1736258308108,0.4576,3635.8,3635.7,0.27506]
[1736258308307,1.34,3635.8,3635.7,0.27506]
[1736258309213,0.8824,3635.8,3635.7,3.48286]
[1736258312421,2.60978969,3636.2,3636.1,0.27503]
[1736258312613,3.32250969,3636.2,3636.1,0.27503]
[1736258312927,0.27503,3636.1,3636.0,1.27511927]
[1736258313107,3.04748969,3636.2,3636.0,41.80008927]
[1736258313409,3.32251969,3636.2,3636.1,0.27503]
[1736258313916,3.73791969,3636.2,3636.1,0.27503]
[1736258314117,1.57603,3636.2,3636.1,0.27503]
[1736258315015,0.27503,3636.1,3636.0,42.07512927]
[1736258315817,0.27503,3636.1,3636.0,41.80008927]
[1736258316020,0.27503,3636.1,3636.0,42.07512927]
[1736258317425,3.45815181,3636.2,3636.1,0.27503]
[1736258317426,3.73317181,3636.2,3636.1,0.27503]
[1736258317619,0.27503,3636.1,3636.0,42.07511927]
[1736258317815,3.45815181,3636.2,3636.0,41.80008927]
[1736258318214,3.45815181,3636.2,3636.1,0.27503]
[1736258318215,3.73318181,3636.2,3636.1,0.27503]
[1736258318716,0.27503,3636.1,3636.0,42.07511927]
[1736258318918,3.45815181,3636.2,3636.0,41.80008927]
[1736258319120,3.73317181,3636.2,3636.1,0.27503]
[1736258319323,0.27503,3636.1,3636.0,42.07511927]
[1736258319915,3.45815181,3636.2,3636.0,41.80008927]
[1736258320116,3.73317181,3636.2,3636.1,0.27503]
[1736258320723,1.57602,3636.2,3636.1,0.27503]
[1736258321618,0.8531,3636.2,3636.1,0.27503]
[1736258321828,0.8531,3636.2,3636.1,1.15183]
[1736258322021,2.5743465,3636.2,3636.1,1.15183]
[1736258325216,3.57443577,3636.2,3636.0,44.0078]
[1736258325423,1.15773,3636.1,3636.0,44.0078]
[1736258326129,1.57035929,3636.1,3636.0,44.0078]
[1736258326317,1.57035929,3636.1,3636.0,40.8]
[1736258327216,5.89638152,3636.1,3636.0,40.8]
[1736258332039,5.89638152,3636.1,3636.0,41.07504]
[1736258332628,5.89638152,3636.1,3636.0,40.8]
[1736258332929,5.89638152,3636.1,3636.0,41.07504]
[1736258334427,5.89638152,3636.1,3636.0,40.8]
[1736258336223,1.57035929,3636.1,3636.0,40.8]
[1736258336425,5.4155092,3636.1,3636.0,40.8]
[1736258337529,1.57035929,3636.1,3636.0,40.8]
[1736258337730,1.57035929,3636.1,3636.0,41.07504]
[1736258339126,10.81544842,3636.1,3636.0,41.07504]
[1736258340430,5.89070356,3636.1,3636.0,41.07504]
[1736258341627,1.15773,3636.1,3636.0,41.07504]
[1736258342031,1.15773,3636.1,3636.0,40.8]
[1736258342828,1.57035929,3636.1,3636.0,40.8]
[1736258344240,1.57035929,3636.1,3636.0,41.07504]
[1736258344531,10.81590029,3636.1,3636.0,40.8]
[1736258345834,5.41596107,3636.1,3636.0,40.8]
[1736258346434,5.41596107,3636.1,3636.0,41.07504]
[1736258347030,1.57035929,3636.1,3636.0,41.07504]
[1736258347324,4.77815929,3636.1,3636.0,41.07504]
[1736258347530,4.32615929,3636.1,3636.0,41.07504]
[1736258347931,0.41262929,3636.1,3636.0,44.70824]
[1736258349633,2.16078257,3636.1,3636.0,44.70824]
[1736258351238,3.65380314,3636.2,3636.1,0.27503]
[1736258351438,3.65380314,3636.2,3636.1,1.27511927]
[1736258354034,3.24117385,3636.2,3636.1,1.27511927]
[1736258355134,3.65380314,3636.2,3636.1,1.27511927]
[1736258356335,3.24117385,3636.2,3636.1,1.27511927]
[1736258356733,3.51619385,3636.2,3636.1,1.27511927]
[1736258356934,3.68087385,3636.2,3636.1,1.27511927]
[1736258357542,0.85232929,3636.2,3636.1,1.27511927]
[1736258358336,0.85232929,3636.2,3636.0,44.4332]
[1736258358638,0.85232929,3636.2,3636.0,44.70823]
[1736258358639,1.43778927,3636.1,3636.0,44.70823]
[1736258358946,0.4377,3636.1,3636.0,44.70823]
[1736258359238,0.4377,3636.1,3636.0,45.70831927]
[1736258360044,4.09135994,3636.1,3636.0,45.70831927]
[1736258361248,0.4377,3636.1,3636.0,45.70831927]
[1736258362350,3.67873065,3636.1,3636.0,45.70831927]
[1736258363549,4.09133816,3636.1,3636.0,45.70831927]
[1736258364450,0.85030751,3636.1,3636.0,45.70831927]
[1736258365552,1.12533751,3636.1,3636.0,45.28291927]
[1736258366151,0.71273,3636.1,3636.0,45.28291927]
[1736258366348,0.71273,3636.1,3636.0,44.28283]
[1736258366649,0.71273,3636.1,3636.0,45.28291927]
[1736258367051,1.12533751,3636.1,3636.0,45.28291927]
[1736258367354,0.85030751,3636.1,3636.0,45.28291927]
[1736258369555,4.091691,3636.1,3636.0,45.28291927]
[1736258369956,4.091691,3636.1,3636.0,42.07511927]
[1736258380166,0.4377,3636.1,3636.0,42.07511927]
[1736258380669,4.09395916,3636.1,3636.0,42.07511927]
[1736258380863,3.68134757,3636.1,3636.0,42.07511927]
[1736258381168,4.09395916,3636.1,3636.0,42.07511927]
[1736258381768,0.41261159,3636.1,3636.0,42.07511927]
[1736258382668,3.68324516,3636.2,3636.1,0.27503]
[1736258384171,0.85231159,3636.2,3636.1,0.27503]
[1736258385364,0.4397,3636.2,3636.1,0.27503]
[1736258386568,0.85231159,3636.2,3636.1,0.27503]
[1736258388170,0.41261159,3636.2,3636.1,0.27503]
[1736258389263,0.41261159,3636.2,3636.0,41.80008927]
[1736258389264,4.32486343,3636.3,3636.2,0.27502]
[1736258389467,4.32486343,3636.3,3636.2,1.27510927]
[1736258390678,4.73747502,3636.3,3636.2,0.27502]
[1736258391667,4.26430355,3636.3,3636.2,0.27502]
[1736258393170,0.41261159,3636.3,3636.2,0.27502]
[1736258394263,0.41261159,3636.3,3636.2,4.59923982]
[1736258396969,0.41261159,3636.3,3636.2,5.46773982]
[1736258400872,0.41261159,3636.3,3636.2,7.08572843]
[1736258401569,0.41261159,3636.3,3636.2,8.0858177]
[1736258401771,3.74469089,3636.4,3636.3,0.27501]
[1736258401969,3.74469089,3636.4,3636.3,43.25978788]
[1736258403481,2.16366241,3636.5,3636.4,0.27501]
[1736258403679,2.16366241,3636.5,3636.4,4.48289927]
[1736258404767,2.16366241,3636.6,3636.5,0.275]
[1736258405077,2.16366241,3636.6,3636.5,1.27508927]
[1736258406174,3.24549362,3636.6,3636.5,1.27508927]
[1736258406373,3.68039362,3636.6,3636.5,1.27508927]
[1736258406573,3.95538362,3636.6,3636.5,1.27508927]
[1736258406877,3.68039362,3636.6,3636.5,1.27508927]
[1736258407873,3.24549362,3636.6,3636.5,1.27508927]
[1736258408073,3.09111844,3636.6,3636.5,2.27517854]
[1736258408286,6.48729515,3637.5,3636.5,7.12017854]
[1736258408582,6.48729515,3637.5,3637.4,1.27501927]
[1736258408771,6.48729515,3637.5,3637.4,42.07501927]
[1736258408973,6.48729515,3637.5,3637.4,42.93591927]
[1736258409679,0.433,3637.8,3637.4,42.93591927]
[1736258409680,0.433,3637.8,3637.7,0.27491]
[1736258411581,0.433,3637.8,3637.7,2.48521801]
[1736258411783,2.58780227,3638.0,3637.9,0.27489]
[1736258411981,2.15850227,3638.0,3637.9,0.27489]
[1736258412480,2.15850227,3638.2,3638.1,0.27488]
[1736258412674,2.15850227,3638.2,3638.1,2.48518801]
[1736258413682,2.15850227,3638.2,3638.1,2.90558801]
[1736258414284,0.8678,3638.4,3638.1,2.90558801]
[1736258414285,0.8678,3638.4,3638.3,0.27486]
[1736258418391,2.15850227,3639.3,3638.1,5.83850801]
[1736258418689,2.15850227,3639.3,3639.0,0.27481]
[1736258418690,1.3287,3639.1,3639.0,0.27481]
[1736258419082,1.3287,3639.1,3638.8,2.21030801]
[1736258419283,1.3287,3639.1,3639.0,40.8]
[1736258419887,1.6035,3639.1,3639.0,40.8]
[1736258420492,3.53900801,3639.1,3638.5,3.2078]
[1736258420679,3.53900801,3639.1,3638.4,0.27485]
[1736258420680,0.27484,3638.6,3638.4,0.27485]
[1736258420889,1.3259,3638.5,3638.4,0.27485]
[1736258421097,1.3259,3638.5,3638.4,41.07485]
[1736258421393,1.3259,3638.5,3638.0,0.449]
[1736258421394,0.27487,3638.2,3638.0,0.27488]
[1736258421692,0.27489,3638.0,3637.7,0.2749]
[1736258421888,0.27489,3638.0,3637.8,40.8]
[1736258422087,0.4489,3637.9,3637.8,40.8]
[1736258422287,0.4489,3637.9,3637.8,41.0749]
[1736258422496,1.3462,3637.9,3637.8,41.0749]
[1736258423887,1.3462,3637.9,3637.8,40.8]
[1736258424087,1.62109,3637.9,3637.8,40.8]
[1736258424286,3.83139801,3637.9,3637.8,40.8]
[1736258425182,1.62109,3637.9,3637.8,40.8]
[1736258427393,1.62109,3637.9,3637.8,41.0749]
[1736258429798,3.2078,3638.2,3637.8,40.8]
[1736258430099,0.4546,3638.2,3638.1,2.48518801]
[1736258430493,0.4546,3638.2,3638.1,43.28518801]
[1736258435705,0.4546,3638.2,3638.1,41.07488]
[1736258437504,0.4546,3638.2,3638.1,41.49248]
[1736258437702,0.883,3638.4,3638.3,0.27486]
[1736258437900,0.27484,3638.7,3638.1,43.42790801]
[1736258438107,0.27484,3638.6,3638.5,0.27484]
[1736258438805,0.27484,3638.7,3638.1,44.11509801]
[1736258439006,0.27484,3638.7,3638.5,0.27484]
[1736258439200,0.27484,3638.7,3638.1,43.42790801]
[1736258439400,0.27484,3638.7,3638.6,0.27484]
[1736258440004,0.27484,3638.6,3638.5,0.27484]
[1736258442493,4.5025,3638.8,3638.6,0.27483]
[1736258442494,0.27484,3638.7,3638.6,0.27483]
[1736258443601,4.5025,3638.8,3638.3,0.4575]
[1736258443809,0.27485,3638.5,3638.4,0.27485]
[1736258445207,0.27484,3638.6,3638.5,0.27484]
[1736258447912,0.27485,3638.4,3638.3,0.73236]
[1736258449013,0.27485,3638.4,3638.3,0.27486]
[1736258449706,0.27487,3638.3,3638.2,0.27486]
[1736258451312,0.27487,3638.3,3638.2,0.27487]
[1736258451713,2.15850227,3638.6,3638.1,41.2176]
[1736258451912,0.27487,3638.2,3638.1,41.49247]
[1736258452307,0.27487,3638.2,3638.1,41.2176]
[1736258453407,0.27487,3638.2,3638.1,41.49248]
[1736258454417,2.43337227,3638.2,3638.1,41.49248]
[1736258456620,2.86437227,3638.2,3638.1,41.49248]
[1736258457118,2.86437227,3638.2,3638.1,41.2176]
[1736258457627,2.02050227,3638.2,3638.1,48.06458801]
[1736258457824,4.20907215,3638.6,3638.5,0.27485]
[1736258458021,4.20907215,3638.6,3638.5,5.69295801]
[1736258459130,0.27481,3639.0,3638.8,0.27482]
[1736258459831,0.27481,3639.0,3638.9,41.07482]
[1736258460729,0.27481,3639.0,3638.9,40.8]
[1736258460931,1.12411,3639.1,3638.9,41.07482]
[1736258461127,0.27481,3639.0,3638.9,40.8]
[1736258461433,0.27481,3639.0,3638.9,41.07482]
[1736258461821,1.12411,3639.1,3639.0,0.27481]
[1736258462025,1.12411,3639.1,3638.9,40.8]
[1736258462227,0.27481,3639.0,3638.9,41.07481]
[1736258462428,1.12411,3639.1,3639.0,0.27481]
[1736258466029,0.8493,3639.1,3639.0,0.27481]
[1736258466530,1.1241,3639.1,3639.0,0.27481]
[1736258468133,0.8493,3639.1,3639.0,0.27481]
[1736258468636,1.1241,3639.1,3639.0,0.27481]
[1736258469729,3.23663371,3639.2,3638.9,40.8]
[1736258469935,3.23663371,3639.2,3639.1,0.2748]
[1736258470136,3.93652371,3639.3,3639.2,0.27479]
[1736258470328,3.66173371,3639.3,3639.2,0.27479]
[1736258471729,0.4251,3639.3,3639.2,0.27479]
[1736258472640,4.40930371,3639.5,3639.4,0.27478]
[1736258473037,4.40930371,3639.5,3639.1,2.51770801]
[1736258473333,4.13453371,3639.5,3639.1,2.51770801]
[1736258473533,3.23663371,3639.5,3639.4,2.48508801]